{"text_format":"1","workbook":"xlsx","n_sheets":4,"sheets":["Arbre","LiensArbre","Sheet","Liens"],"not_rendered":{"charts":0,"images":0,"macros":1,"external_links":0,"defined_names":4,"comments":0,"pivot_tables":0},"unopened":[],"bounds":{"document_bytes":16777216,"sheet_cells":100000,"rows_first":2000,"rows_last":500,"rows_between":2000,"halvings":0,"cell_chars":16384,"cell_head_chars":4096},"cells_cut":0,"cells_raw":0,"read":"whole","date_system":"1900"}

{"sheet":"Arbre","index":0,"n_rows":45,"n_cols":8,"rows_kept":45,"cut":false,"hidden":true,"merged":[]}
["resultat du simulateur arrive sur un écran avec 2 colonnes où un visuel est mis + petit texte + hyperlien vers la page produit"]
["la 1re colonne constitue la solution adéquate",null,"la 2ieme une alternative ou un service que nous proposons en plus"]
[]
[]
[]
["1 Opérations en cash"]
["1.1. Faites-vous régulièrement des paiements en cash ?","N","passez à l’étape 1.3"]
[null,"Y","* à des personnes sans compte ?","Y"," => Belfius EasyCard (rechargeable)","Si vous faites régulièrement des paiements en faveur de personnes  sans compte, la Belfius EasyCard est la solution appropriée. "," => carte SSB prépayée (paiement unique)","Pour un CPAS, en cas de paiement unique et ponctuel, la carte SSB prépayée est une alternative intéressante."]
[null,"Y","* à d'autres personnes ? ","Y","Découvrez les alternatives au cash","Si vous faites régulièrement des paiements à des personnes avec compte, vous pouvez effectuer au maximum un virement sur ce compte. ","Conseils pratiques concernant votre gestion du cash","Recourez au maximum aux paiements sur compte et découvrez ici différentes alternatives."]
[]
["1.2. Qui retire du cash au sein de votre organisation ? "]
["* le responsable financier","Y"," => carte de débit","La carte de débit est la meilleure solution. Les gros montants sont réservables online via BelfiusWeb.","Conseils pratiques concernant votre gestion des liquidités","Recourez au maximum aux paiements sur compte et découvrez ici différentes alternatives.","Recourez au maximum aux paiements sur compte et découvrez ici différentes alternatives."]
["* un collaborateur de l'organisation","Y"," => carte de débit SSB-only + commande de montants élevés via BW","Nous vous conseillons la carte de débit \"SSB only\" (uniquement pour opérations aux automates SSB).","Conseils pratiques concernant votre gestion des liquidités","Recourez au maximum aux paiements sur compte et découvrez ici différentes alternatives.","Recourez au maximum aux paiements sur compte et découvrez ici différentes alternatives."]
[]
[]
["1.3. Avez-vous régulièrement des recettes en cash ?","Y","* êtes-vous intéressé par des alternatives au cash ?","N","passez à l’étape 1.4"]
[null,null,null,"Y"," => nouvelles pages d'alternatives : cartes, terminaux et pay button","Dans le module Cash & Petites Dépenses, vous trouverez différentes alternatives à ces opérations  en espèces. "," => Alternatives en détails","Analysez en détail les alternatives au cash."]
[null,"N","passez à l’étape 1.5"]
["1.4. Qui verse les recettes en cash sur le compte de l'organisation ?"]
["* le responsable financier","Y"," => carte de débit (via SSB jusque 200 billets par versement, plusieurs versements successifs possibles) ou Cash Box (payant/max. 400 billets max. 125000 €)","La carte de débit est la plus adaptée (jusqu'à 200 billets par versement aux appareils SSB).","principes pour transporteur (POD)","Vous préférez faire appel à un transporteur de valeurs ? Belfius peut vous aider."]
["* un collaborateur de l'organisation ou un tiers","Y"," => cartes déposant ","Une carte déposant, nominative ou non, est la meilleure solution pour le collaborateur.","principes pour transporteur (POD)","Vous préférez faire appel à un transporteur de valeurs ? Belfius peut vous aider."]
[]
["1.5. mettez-vous un budget en cash à la disposition des collaborateurs pour les dépenses professionnelles ?","Y","passez à l’étape 3"]
[null,"N","passez à l’étape 2"]
[]
[]
["2. Opérations via Internet"]
["2.1. Votre organisation effectue-t-elle des achats via Internet ?","Y","passez à l’étape 2,2"]
[null,"N","passez à l’étape 2,3"]
["2.2. qui se charge des achats sur Internet ?"]
["* le responsable financier","Y"," => visa corporate","La Visa Corporate flexible full options est la meilleure solution."," => MC Prepaid Business","La MasterCard Prepaid est la meilleure solution si vous optez pour un budget prédéfini et adaptable."]
["* un collaborateur de l'organisation","Y","* souhaitez-vous un budget prédéfini, adaptable et contrôlable ?","Y"," => MC Prepaid Business","La MasterCard Prepaid est la solution idéale pour des achats sur Internet avec un budget prédéfini."," => Pay Button","Si vous proposez des services via votre site web, vous pouvez envisager le Pay Button."]
[null,null,"* vous souhaitez un maximum de flexibilité et de contrôle ?","Y"," => visa corporate","La Visa Corporate flexible convient aux grandes organisations, aussi pour les achats sur Internet."," => Pay Button","Si vous proposez des services via votre site web, vous pouvez envisager le Pay Button."]
["2.3. vous recevez des paiements via Internet ou souhaitez prévoir cette possibilité ?","Y"," => Pay Button","Si votre organisation propose des services sur Internet, il existe plusieurs possibilités.","gestion performante des recettes via la carte bancaire","Belfius propose des services spécifiques pour gérer aisément les recettes des paiements par carte. "]
[null,"N","passez à l’étape 3"]
[]
["3. Dépenses professionnelles au sein de votre organisation"]
["3.1. dépenses professionnelles du management"]
["* vous souhaitez une solution avec un maximum de flexibilité et de contrôle ?","Y"," => visa corporate","Le management optera de préférence pour la Visa Corporate, sur mesure pour les grandes organisations. "," => Xpenditure","Gagnez du temps via un traitement automatisé de vos notes de frais."]
["* vous souhaitez une solution permettant un contrôle total de votre budget ?","Y"," => MC Prepaid Business","Optez pour la MasterCard Prepaid pour les dépenses limitées à un budget prédéfini et contrôlable. "," => Xpenditure","Gagnez du temps via un traitement automatisé de vos notes de frais."]
[]
[]
["3.2. dépenses professionnelles des collaborateurs"]
["* vous souhaitez une solution avec un maximum de flexibilité et de contrôle ?","Y"," => visa corporate, limitations géographiques et fonctionnelles possibles)","Vous pouvez paramétrer la Visa Corporate en fonction du domaine d’activité de vos collaborateurs."," => Xpenditure","Gagnez du temps via un traitement automatisé de vos notes de frais."]
["* vous souhaitez une solution permettant un contrôle total de votre budget ?","Y"," => MC Prepaid Business, limitations géographiques et fonctionnelles possibles)","Optez pour la MasterCard Prepaid pour les dépenses professionnelles limitées à un budget prédéfini."," => Xpenditure","Gagnez du temps via un traitement automatisé de vos notes de frais."]

{"sheet":"LiensArbre","index":1,"n_rows":30,"n_cols":4,"rows_kept":30,"cut":false,"hidden":true,"merged":[]}
["CB111O",{"$f":"Arbre!F8","v":"Si vous faites régulièrement des paiements en faveur de personnes  sans compte, la Belfius EasyCard est la solution appropriée. "},"TBOp111","LblOplossing111"]
["CB111A",{"$f":"Arbre!H8","v":"Pour un CPAS, en cas de paiement unique et ponctuel, la carte SSB prépayée est une alternative intéressante."},"TBAl111","LblAlternatief111"]
["CB112O",{"$f":"Arbre!F9","v":"Si vous faites régulièrement des paiements à des personnes avec compte, vous pouvez effectuer au maximum un virement sur ce compte. "},"TBOp112","LblOplossing112"]
["CB112A","Nous avons quelques conseils pour une gestion aisée du cash au sein de votre organisation.","TBAl112","LblAlternatief112"]
["CB121O",{"$f":"Arbre!D12","v":"La carte de débit est la meilleure solution. Les gros montants sont réservables online via BelfiusWeb."},"TBOp121","LblOplossing121"]
["CB121A","Nous avons quelques conseils pour une gestion aisée du cash au sein de votre organisation.","TBAl121","LblAlternatief121"]
["CB122O",{"$f":"Arbre!D13","v":"Nous vous conseillons la carte de débit \"SSB only\" (uniquement pour opérations aux automates SSB)."},"TBOp122","LblOplossing122"]
["CB122A","Nous avons quelques conseils pour une gestion aisée du cash au sein de votre organisation.","TBAl122","LblAlternatief122"]
["CB131O",{"$f":"Arbre!F17","v":"Dans le module Cash & Petites Dépenses, vous trouverez différentes alternatives à ces opérations  en espèces. "},"TBOp131","LblOplossing131"]
["CB131A",{"$f":"Arbre!H17","v":"Analysez en détail les alternatives au cash."},"TBAl131","LblAlternatief131"]
["CB141O",{"$f":"Arbre!D20","v":"La carte de débit est la plus adaptée (jusqu'à 200 billets par versement aux appareils SSB)."},"TBOp141","LblOplossing141"]
["CB141A",{"$f":"Arbre!F20","v":"Vous préférez faire appel à un transporteur de valeurs ? Belfius peut vous aider."},"TBAl141","LblAlternatief141"]
["CB142O",{"$f":"Arbre!D21","v":"Une carte déposant, nominative ou non, est la meilleure solution pour le collaborateur."},"TBOp142","LblOplossing142"]
["CB142A",{"$f":"Arbre!F21","v":"Vous préférez faire appel à un transporteur de valeurs ? Belfius peut vous aider."},"TBAl142","LblAlternatief142"]
["CB221O",{"$f":"Arbre!D31","v":"La Visa Corporate flexible full options est la meilleure solution."},"TBOp221","LblOplossing221"]
["CB221A",{"$f":"Arbre!F31","v":"La MasterCard Prepaid est la meilleure solution si vous optez pour un budget prédéfini et adaptable."},"TBAl221","LblAlternatief221"]
["CB222O",{"$f":"Arbre!F32","v":"La MasterCard Prepaid est la solution idéale pour des achats sur Internet avec un budget prédéfini."},"TBOp222","LblOplossing222"]
["CB222A",{"$f":"Arbre!H32","v":"Si vous proposez des services via votre site web, vous pouvez envisager le Pay Button."},"TBAl222","LblAlternatief222"]
["CB223O",{"$f":"Arbre!F33","v":"La Visa Corporate flexible convient aux grandes organisations, aussi pour les achats sur Internet."},"TBOp223","LblOplossing223"]
["CB223A",{"$f":"Arbre!H33","v":"Si vous proposez des services via votre site web, vous pouvez envisager le Pay Button."},"TBAl223","LblAlternatief223"]
["CB23O",{"$f":"Arbre!D34","v":"Si votre organisation propose des services sur Internet, il existe plusieurs possibilités."},"TBOp23","LblOplossing23"]
["CB23A",{"$f":"Arbre!F34","v":"Belfius propose des services spécifiques pour gérer aisément les recettes des paiements par carte. "},"TBAl23","LblAlternatief23"]
["CB311O",{"$f":"Arbre!D39","v":"Le management optera de préférence pour la Visa Corporate, sur mesure pour les grandes organisations. "},"TBOp311","LblOplossing311"]
["CB311A",{"$f":"Arbre!F39","v":"Gagnez du temps via un traitement automatisé de vos notes de frais."},"TBAl311","LblAlternatief311"]
["CB312O",{"$f":"Arbre!D40","v":"Optez pour la MasterCard Prepaid pour les dépenses limitées à un budget prédéfini et contrôlable. "},"TBOp312","LblOplossing312"]
["CB312A",{"$f":"Arbre!F40","v":"Gagnez du temps via un traitement automatisé de vos notes de frais."},"TBAl312","LblAlternatief312"]
["CB321O",{"$f":"Arbre!D44","v":"Vous pouvez paramétrer la Visa Corporate en fonction du domaine d’activité de vos collaborateurs."},"TBOp321","LblOplossing321"]
["CB321A",{"$f":"Arbre!F44","v":"Gagnez du temps via un traitement automatisé de vos notes de frais."},"TBAl321","LblAlternatief321"]
["CB322O",{"$f":"Arbre!D45","v":"Optez pour la MasterCard Prepaid pour les dépenses professionnelles limitées à un budget prédéfini."},"TBOp322","LblOplossing322"]
["CB322A",{"$f":"Arbre!F45","v":"Gagnez du temps via un traitement automatisé de vos notes de frais."},"TBAl322","LblAlternatief322"]

{"sheet":"Sheet","index":2,"n_rows":1,"n_cols":26,"rows_kept":1,"cut":false,"hidden":false,"merged":[]}
[null,null,null,null,null,null,null,"https://www.belfius.be/redirect?key=CardSimulator_E12_PSB_FR",null,null,null,null,null,null,null,null,null,null,null,null,null,null,null,null,null,"https://www.belfius.be/redirect?key=CardSimulator_G8_PSB_FR"]

{"sheet":"Liens","index":3,"n_rows":121,"n_cols":26,"rows_kept":121,"cut":false,"hidden":true,"merged":[]}
["Objet","prefix","REF",null,"Metier",null,"LANG",null,"Target","TB","Redirect",null,"new","old",null,null,null,null,null,null,null,null,null,null,null,"https://www.belfius.be/redirect?key=CardSimulator_E9_CB_NL"]
["CB111O","CardSimulator_","E8","_","PSB","_","NL",{"$f":"B2&C2&D2&E2&F2&G2","v":"CardSimulator_E8_PSB_NL"},"/publicsocial/NL/ProductenEnDiensten/DagelijksBeheer/CashEnKleineUitgaven/Card/Prepaids/BelfiusEasyCard/index.aspx","TBOp111","https://www.belfius.be/redirect?key=CardSimulator_E8_PSB_NL"]
["CB111O","CardSimulator_","E8","_","PSB","_","FR",{"$f":"B3&C3&D3&E3&F3&G3","v":"CardSimulator_E8_PSB_FR"},"/publicsocial/FR/ProduitsServices/GestionDeTresorerie/CashEtPetitesDepenses/Card/Prepaids/BelfiusEasyCard/index.aspx","TBOp111","https://www.belfius.be/redirect?key=CardSimulator_E8_PSB_FR"]
["CB111O","CardSimulator_","E8","_","CB","_","NL",{"$f":"B4&C4&D4&E4&F4&G4","v":"CardSimulator_E8_CB_NL"},"/corporate/NL/OnzeProductenEnDiensten/ThesauriebeheerEnTransacties/BetalenEnBetaaldWorden/Betalen/Bankkaarten/Prepaid/Belfius-EasyCard/index.aspx","TBOp111","https://www.belfius.be/redirect?key=CardSimulator_E8_CB_NL"]
["CB111O","CardSimulator_","E8","_","CB","_","FR","CardSimulator_E8_CB_FR","/corporate/FR/ProduitsServices/GestionTresorerieTransactions/PayerEtrePaye/Payer/CartesBancaires/Prepaid/Belfius-EasyCard/index.aspx","TBOp111","https://www.belfius.be/redirect?key=CardSimulator_E8_CB_FR"]
["CB112O","CardSimulator_","E9","_","PSB","_","NL","CardSimulator_E9_PSB_NL","/publicsocial/NL/ProductenEnDiensten/DagelijksBeheer/CashEnKleineUitgaven/index.aspx","TBOp112","https://www.belfius.be/redirect?key=CardSimulator_E9_PSB_NL"]
["CB112O","CardSimulator_","E9","_","PSB","_","FR","CardSimulator_E9_PSB_FR","/publicsocial/FR/ProduitsServices/GestionDeTresorerie/CashEtPetitesDepenses/index.aspx","TBOp112","https://www.belfius.be/redirect?key=CardSimulator_G8_PSB_FR",null,"https://www.belfius.be/redirect?key=CardSimulator_G8_PSB_FR"]
["CB112O","CardSimulator_","E9","_","CB","_","NL","CardSimulator_E9_CB_NL","/corporate/NL/OnzeProductenEnDiensten/ThesauriebeheerEnTransacties/BetalenEnBetaaldWorden/Betalen/index.aspx","TBOp112","https://www.belfius.be/redirect?key=CardSimulator_E9_CB_NL"]
["CB112O","CardSimulator_","E9","_","CB","_","FR","CardSimulator_E9_CB_FR","/corporate/FR/ProduitsServices/GestionTresorerieTransactions/PayerEtrePaye/Payer/index.aspx","TBOp112","https://www.belfius.be/redirect?key=CardSimulator_E9_CB_FR"]
["CB111A","CardSimulator_","G8","_","PSB","_","NL","CardSimulator_G8_PSB_NL","/publicsocial/NL/ProductenEnDiensten/DagelijksBeheer/CashEnKleineUitgaven/Card/Prepaids/Prepaid-SSB-kaart/index.aspx","TBAl111","https://www.belfius.be/redirect?key=CardSimulator_G8_PSB_NL"]
["CB111A","CardSimulator_","G8","_","PSB","_","FR","CardSimulator_G8_PSB_FR","/publicsocial/FR/ProduitsServices/GestionDeTresorerie/CashEtPetitesDepenses/Card/Prepaids/Prepaid-SSB-kaart/index.aspx","TBAl111","https://www.belfius.be/redirect?key=CardSimulator_E9_PSB_FR",null,"https://www.belfius.be/redirect?key=CardSimulator_E9_PSB_FR","https://www.belfius.be/redirect?key=CardSimulator_G8_PSB_FR"]
["CB111A","CardSimulator_","G8","_","CB","_","NL","CardSimulator_G8_CB_NL",null,"TBAl111","https://www.belfius.be/redirect?key=CardSimulator_G8_CB_NL"]
["CB111A","CardSimulator_","G8","_","CB","_","FR","CardSimulator_G8_CB_FR",null,"TBAl111","https://www.belfius.be/redirect?key=CardSimulator_G8_CB_FR",null,"idem en FR"]
["CB112A","CardSimulator_","G9","_","PSB","_","NL","CardSimulator_G9_PSB_NL","/common/NL/multimedia/MMDownloadableFile/Smallsites/CardSimulator/LaGestionDeVotreCashViaBelfius.pdf","TBAl112","https://www.belfius.be/redirect?key=CardSimulator_G9_PSB_NL"]
["CB112A","CardSimulator_","G9","_","PSB","_","FR","CardSimulator_G9_PSB_FR","/common/fr/multimedia/MMDownloadableFile/Smallsites/CardSimulator/LaGestionDeVotreCashViaBelfius.pdf","TBAl112","https://www.belfius.be/redirect?key=CardSimulator_G9_PSB_FR"]
["CB112A","CardSimulator_","G9","_","CB","_","NL","CardSimulator_G9_CB_NL","/common/NL/multimedia/MMDownloadableFile/Smallsites/CardSimulator/LaGestionDeVotreCashViaBelfius.pdf","TBAl112","https://www.belfius.be/redirect?key=CardSimulator_G9_CB_NL"]
["CB112A","CardSimulator_","G9","_","CB","_","FR","CardSimulator_G9_CB_FR","/common/fr/multimedia/MMDownloadableFile/Smallsites/CardSimulator/LaGestionDeVotreCashViaBelfius.pdf","TBAl112","https://www.belfius.be/redirect?key=CardSimulator_G9_CB_FR"]
["CB121O","CardSimulator_","C12","_","PSB","_","NL","CardSimulator_C12_PSB_NL","/publicsocial/NL/ProductenEnDiensten/DagelijksBeheer/CashEnKleineUitgaven/index.aspx","TBOp121","https://www.belfius.be/redirect?key=CardSimulator_C12_PSB_NL"]
["CB121O","CardSimulator_","C12","_","PSB","_","FR","CardSimulator_C12_PSB_FR","/publicsocial/FR/ProduitsServices/GestionDeTresorerie/CashEtPetitesDepenses/index.aspx","TBOp121","https://www.belfius.be/redirect?key=CardSimulator_C12_PSB_FR"]
["CB121O","CardSimulator_","C12","_","CB","_","NL","CardSimulator_C12_CB_NL","/corporate/NL/OnzeProductenEnDiensten/ThesauriebeheerEnTransacties/BetalenEnBetaaldWorden/Betalen/index.aspx","TBOp121","https://www.belfius.be/redirect?key=CardSimulator_C12_CB_NL"]
["CB121O","CardSimulator_","C12","_","CB","_","FR","CardSimulator_C12_CB_FR","/corporate/FR/ProduitsServices/GestionTresorerieTransactions/PayerEtrePaye/Payer/index.aspx","TBOp121","https://www.belfius.be/redirect?key=CardSimulator_C12_CB_FR"]
["CB121A","CardSimulator_","E12","_","PSB","_","NL","CardSimulator_E12_PSB_NL","/common/NL/multimedia/MMDownloadableFile/Smallsites/CardSimulator/LaGestionDeVotreCashViaBelfius.pdf","TBAl121","https://www.belfius.be/redirect?key=CardSimulator_E12_PSB_NL"]
["CB121A","CardSimulator_","E12","_","PSB","_","FR","CardSimulator_E12_PSB_FR","/common/fr/multimedia/MMDownloadableFile/Smallsites/CardSimulator/LaGestionDeVotreCashViaBelfius.pdf","TBAl121","https://www.belfius.be/redirect?key=CardSimulator_E12_PSB_FR"]
["CB121A","CardSimulator_","E12","_","CB","_","NL","CardSimulator_E12_CB_NL","/common/NL/multimedia/MMDownloadableFile/Smallsites/CardSimulator/LaGestionDeVotreCashViaBelfius.pdf","TBAl121","https://www.belfius.be/redirect?key=CardSimulator_E12_CB_NL"]
["CB121A","CardSimulator_","E12","_","CB","_","FR","CardSimulator_E12_CB_FR","/common/fr/multimedia/MMDownloadableFile/Smallsites/CardSimulator/LaGestionDeVotreCashViaBelfius.pdf","TBAl121","https://www.belfius.be/redirect?key=CardSimulator_E12_CB_FR"]
["CB122O","CardSimulator_","C13","_","PSB","_","NL","CardSimulator_C13_PSB_NL","/publicsocial/NL/ProductenEnDiensten/DagelijksBeheer/CashEnKleineUitgaven/index.aspx","TBOp122","https://www.belfius.be/redirect?key=CardSimulator_C13_PSB_NL"]
["CB122O","CardSimulator_","C13","_","PSB","_","FR","CardSimulator_C13_PSB_FR","/publicsocial/FR/ProduitsServices/GestionDeTresorerie/CashEtPetitesDepenses/index.aspx","TBOp122","https://www.belfius.be/redirect?key=CardSimulator_C13_PSB_FR"]
["CB122O","CardSimulator_","C13","_","CB","_","NL","CardSimulator_C13_CB_NL","/corporate/NL/OnzeProductenEnDiensten/ThesauriebeheerEnTransacties/BetalenEnBetaaldWorden/Betalen/index.aspx","TBOp122","https://www.belfius.be/redirect?key=CardSimulator_C13_CB_NL"]
["CB122O","CardSimulator_","C13","_","CB","_","FR","CardSimulator_C13_CB_FR","/corporate/FR/ProduitsServices/GestionTresorerieTransactions/PayerEtrePaye/Payer/index.aspx","TBOp122","https://www.belfius.be/redirect?key=CardSimulator_C13_CB_FR"]
["CB122A","CardSimulator_","E13","_","PSB","_","NL","CardSimulator_E13_PSB_NL","/common/NL/multimedia/MMDownloadableFile/Smallsites/CardSimulator/LaGestionDeVotreCashViaBelfius.pdf","TBAl122","https://www.belfius.be/redirect?key=CardSimulator_E13_PSB_NL"]
["CB122A","CardSimulator_","E13","_","PSB","_","FR","CardSimulator_E13_PSB_FR","/common/fr/multimedia/MMDownloadableFile/Smallsites/CardSimulator/LaGestionDeVotreCashViaBelfius.pdf","TBAl122","https://www.belfius.be/redirect?key=CardSimulator_E13_PSB_FR"]
["CB122A","CardSimulator_","E13","_","CB","_","NL","CardSimulator_E13_CB_NL","/common/NL/multimedia/MMDownloadableFile/Smallsites/CardSimulator/LaGestionDeVotreCashViaBelfius.pdf","TBAl122","https://www.belfius.be/redirect?key=CardSimulator_E13_CB_NL"]
["CB122A","CardSimulator_","E13","_","CB","_","FR","CardSimulator_E13_CB_FR","/common/fr/multimedia/MMDownloadableFile/Smallsites/CardSimulator/LaGestionDeVotreCashViaBelfius.pdf","TBAl122","https://www.belfius.be/redirect?key=CardSimulator_E13_CB_FR"]
["CB131O","CardSimulator_","E15","_","PSB","_","NL","CardSimulator_E15_PSB_NL","/publicsocial/NL/ProductenEnDiensten/DagelijksBeheer/CashEnKleineUitgaven/index.aspx","TBOp131","https://www.belfius.be/redirect?key=CardSimulator_E15_PSB_NL"]
["CB131O","CardSimulator_","E15","_","PSB","_","FR","CardSimulator_E15_PSB_FR","/publicsocial/FR/ProduitsServices/GestionDeTresorerie/CashEtPetitesDepenses/index.aspx","TBOp131","https://www.belfius.be/redirect?key=CardSimulator_G8_PSB_FR",null,"https://www.belfius.be/redirect?key=CardSimulator_G8_PSB_FR","https://www.belfius.be/redirect?key=CardSimulator_E15_PSB_FR"]
["CB131O","CardSimulator_","E15","_","CB","_","NL","CardSimulator_E15_CB_NL","/corporate/NL/OnzeProductenEnDiensten/ThesauriebeheerEnTransacties/BetalenEnBetaaldWorden/Betalen/index.aspx","TBOp131","https://www.belfius.be/redirect?key=CardSimulator_E15_CB_NL"]
["CB131O","CardSimulator_","E15","_","CB","_","FR","CardSimulator_E15_CB_FR","/corporate/FR/ProduitsServices/GestionTresorerieTransactions/PayerEtrePaye/Payer/index.aspx","TBOp131","https://www.belfius.be/redirect?key=CardSimulator_E15_CB_FR"]
["CB131A","CardSimulator_","G15","_","PSB","_","NL","CardSimulator_G15_PSB_NL","/common/NL/multimedia/MMDownloadableFile/Smallsites/CardSimulator/AlternativesCashPercevoirRecettes.pdf","TBAl131","https://www.belfius.be/redirect?key=CardSimulator_G15_PSB_NL"]
["CB131A","CardSimulator_","G15","_","PSB","_","FR","CardSimulator_G15_PSB_FR","/common/fr/multimedia/MMDownloadableFile/Smallsites/CardSimulator/AlternativesCashPercevoirRecettes.pdf","TBAl131","https://www.belfius.be/redirect?key=CardSimulator_G15_CB_FR",null,"https://www.belfius.be/redirect?key=CardSimulator_G15_CB_FR","https://www.belfius.be/redirect?key=CardSimulator_G15_PSB_FR"]
["CB131A","CardSimulator_","G15","_","CB","_","NL","CardSimulator_G15_CB_NL","/common/NL/multimedia/MMDownloadableFile/Smallsites/CardSimulator/AlternativesCashPercevoirRecettes.pdf","TBAl131","https://www.belfius.be/redirect?key=CardSimulator_G15_CB_NL"]
["CB131A","CardSimulator_","G15","_","CB","_","FR","CardSimulator_G15_CB_FR","/common/fr/multimedia/MMDownloadableFile/Smallsites/CardSimulator/AlternativesCashPercevoirRecettes.pdf","TBAl131","https://www.belfius.be/redirect?key=CardSimulator_G15_CB_FR"]
["CB141O","CardSimulator_","C18","_","PSB","_","NL","CardSimulator_C18_PSB_NL","/publicsocial/NL/ProductenEnDiensten/DagelijksBeheer/CashEnKleineUitgaven/Card/Debit/index.aspx","TBOp141","https://www.belfius.be/redirect?key=CardSimulator_C18_PSB_NL"]
["CB141O","CardSimulator_","C18","_","PSB","_","FR","CardSimulator_C18_PSB_FR","/publicsocial/FR/ProduitsServices/GestionDeTresorerie/CashEtPetitesDepenses/Card/Debit/index.aspx","TBOp141","https://www.belfius.be/redirect?key=CardSimulator_C18_PSB_FR"]
["CB141O","CardSimulator_","C18","_","CB","_","NL","CardSimulator_C18_CB_NL","/corporate/NL/OnzeProductenEnDiensten/ThesauriebeheerEnTransacties/BetalenEnBetaaldWorden/Betalen/Bankkaarten/DeDebetkaart/index.aspx","TBOp141","https://www.belfius.be/redirect?key=CardSimulator_C18_CB_NL"]
["CB141O","CardSimulator_","C18","_","CB","_","FR","CardSimulator_C18_CB_FR","/corporate/FR/ProduitsServices/GestionTresorerieTransactions/PayerEtrePaye/Payer/CartesBancaires/Debit/index.aspx","TBOp141","https://www.belfius.be/redirect?key=CardSimulator_C18_CB_FR"]
["CB141A","CardSimulator_","E18","_","PSB","_","NL","CardSimulator_E18_PSB_NL","/common/NL/multimedia/MMDownloadableFile/Smallsites/CardSimulator/PrincipesContratsTransporteursFonds.pdf","TBAl141","https://www.belfius.be/redirect?key=CardSimulator_E18_PSB_NL"]
["CB141A","CardSimulator_","E18","_","PSB","_","FR","CardSimulator_E18_PSB_FR","/common/fr/multimedia/MMDownloadableFile/Smallsites/CardSimulator/PrincipesContratsTransporteursFonds.pdf","TBAl141","https://www.belfius.be/redirect?key=CardSimulator_E18_PSB_FR"]
["CB141A","CardSimulator_","E18","_","CB","_","NL","CardSimulator_E18_CB_NL","/common/NL/multimedia/MMDownloadableFile/Smallsites/CardSimulator/PrincipesContratsTransporteursFonds.pdf","TBAl141","https://www.belfius.be/redirect?key=CardSimulator_E18_CB_NL"]
["CB141A","CardSimulator_","E18","_","CB","_","FR","CardSimulator_E18_CB_FR","/common/fr/multimedia/MMDownloadableFile/Smallsites/CardSimulator/PrincipesContratsTransporteursFonds.pdf","TBAl141","https://www.belfius.be/redirect?key=CardSimulator_E18_CB_FR"]
["CB142O","CardSimulator_","C19","_","PSB","_","NL","CardSimulator_C19_PSB_NL","/publicsocial/NL/ProductenEnDiensten/DagelijksBeheer/CashEnKleineUitgaven/Card/Depot/index.aspx","TBOp142","https://www.belfius.be/redirect?key=CardSimulator_C19_PSB_NL"]
["CB142O","CardSimulator_","C19","_","PSB","_","FR","CardSimulator_C19_PSB_FR","/publicsocial/FR/ProduitsServices/GestionDeTresorerie/CashEtPetitesDepenses/Card/Depot/index.aspx","TBOp142","https://www.belfius.be/redirect?key=CardSimulator_C19_PSB_FR"]
["CB142O","CardSimulator_","C19","_","CB","_","NL","CardSimulator_C19_CB_NL","/corporate/NL/OnzeProductenEnDiensten/ThesauriebeheerEnTransacties/BetalenEnBetaaldWorden/Betalen/Bankkaarten/Dedeposantenkaart/index.aspx","TBOp142","https://www.belfius.be/redirect?key=CardSimulator_C19_CB_NL"]
["CB142O","CardSimulator_","C19","_","CB","_","FR","CardSimulator_C19_CB_FR","/corporate/FR/ProduitsServices/GestionTresorerieTransactions/PayerEtrePaye/Payer/CartesBancaires/Depot/index.aspx","TBOp142","https://www.belfius.be/redirect?key=CardSimulator_C19_CB_FR"]
["CB142A","CardSimulator_","E19","_","PSB","_","NL","CardSimulator_E19_PSB_NL","/common/NL/multimedia/MMDownloadableFile/Smallsites/CardSimulator/PrincipesContratsTransporteursFonds.pdf","TBAl142","https://www.belfius.be/redirect?key=CardSimulator_E19_PSB_NL"]
["CB142A","CardSimulator_","E19","_","PSB","_","FR","CardSimulator_E19_PSB_FR","/common/fr/multimedia/MMDownloadableFile/Smallsites/CardSimulator/PrincipesContratsTransporteursFonds.pdf","TBAl142","https://www.belfius.be/redirect?key=CardSimulator_E19_PSB_FR"]
["CB142A","CardSimulator_","E19","_","CB","_","NL","CardSimulator_E19_CB_NL","/common/NL/multimedia/MMDownloadableFile/Smallsites/CardSimulator/PrincipesContratsTransporteursFonds.pdf","TBAl142","https://www.belfius.be/redirect?key=CardSimulator_E19_CB_NL"]
["CB142A","CardSimulator_","E19","_","CB","_","FR","CardSimulator_E19_CB_FR","/common/fr/multimedia/MMDownloadableFile/Smallsites/CardSimulator/PrincipesContratsTransporteursFonds.pdf","TBAl142","https://www.belfius.be/redirect?key=CardSimulator_E19_CB_FR"]
["CB221O","CardSimulator_","C29","_","PSB","_","NL","CardSimulator_C29_PSB_NL","/publicsocial/NL/ProductenEnDiensten/DagelijksBeheer/CashEnKleineUitgaven/Card/Credit/Visa-Corporate/index.aspx","TBOp221","https://www.belfius.be/redirect?key=CardSimulator_C29_PSB_NL"]
["CB221O","CardSimulator_","C29","_","PSB","_","FR","CardSimulator_C29_PSB_FR","/publicsocial/FR/ProduitsServices/GestionDeTresorerie/CashEtPetitesDepenses/Card/Credit/Visa-Corporate/index.aspx","TBOp221","https://www.belfius.be/redirect?key=CardSimulator_C29_PSB_FR"]
["CB221O","CardSimulator_","C29","_","CB","_","NL","CardSimulator_C29_CB_NL","/corporate/NL/OnzeProductenEnDiensten/ThesauriebeheerEnTransacties/BetalenEnBetaaldWorden/Betalen/Bankkaarten/Credit/Visa-Corporate/index.aspx","TBOp221","https://www.belfius.be/redirect?key=CardSimulator_C29_CB_NL"]
["CB221O","CardSimulator_","C29","_","CB","_","FR","CardSimulator_C29_CB_FR","/corporate/FR/ProduitsServices/GestionTresorerieTransactions/PayerEtrePaye/Payer/CartesBancaires/Credit/Visa-Corporate/index.aspx","TBOp221","https://www.belfius.be/redirect?key=CardSimulator_C29_CB_FR"]
["CB221A","CardSimulator_","E29","_","PSB","_","NL","CardSimulator_E29_PSB_NL","/publicsocial/NL/ProductenEnDiensten/DagelijksBeheer/CashEnKleineUitgaven/Card/Prepaids/Prepaid-MasterCard/index.aspx","TBAl221","https://www.belfius.be/redirect?key=CardSimulator_E29_PSB_NL"]
["CB221A","CardSimulator_","E29","_","PSB","_","FR","CardSimulator_E29_PSB_FR","/publicsocial/FR/ProduitsServices/GestionDeTresorerie/CashEtPetitesDepenses/Card/Prepaids/Prepaid-MasterCard/index.aspx","TBAl221","https://www.belfius.be/redirect?key=CardSimulator_E29_PSB_FR"]
["CB221A","CardSimulator_","E29","_","CB","_","NL","CardSimulator_E29_CB_NL","/publicsocial/NL/ProductenEnDiensten/DagelijksBeheer/CashEnKleineUitgaven/Card/Prepaids/Prepaid-MasterCard/index.aspx","TBAl221","https://www.belfius.be/redirect?key=CardSimulator_E29_CB_NL"]
["CB221A","CardSimulator_","E29","_","CB","_","FR","CardSimulator_E29_CB_FR","/publicsocial/FR/ProduitsServices/GestionDeTresorerie/CashEtPetitesDepenses/Card/Prepaids/Prepaid-MasterCard/index.aspx","TBAl221","https://www.belfius.be/redirect?key=CardSimulator_E29_CB_FR"]
["CB222O","CardSimulator_","E30","_","PSB","_","NL","CardSimulator_E30_PSB_NL","/publicsocial/NL/ProductenEnDiensten/DagelijksBeheer/CashEnKleineUitgaven/Card/Prepaids/Prepaid-MasterCard/index.aspx","TBOp222","https://www.belfius.be/redirect?key=CardSimulator_E30_PSB_NL"]
["CB222O","CardSimulator_","E30","_","PSB","_","FR","CardSimulator_E30_PSB_FR","/publicsocial/FR/ProduitsServices/GestionDeTresorerie/CashEtPetitesDepenses/Card/Prepaids/Prepaid-MasterCard/index.aspx","TBOp222","https://www.belfius.be/redirect?key=CardSimulator_E30_PSB_FR"]
["CB222O","CardSimulator_","E30","_","CB","_","NL",{"$f":"B68&C68&D68&E68&F68&G68","v":"CardSimulator_E30_CB_NL"},"/publicsocial/NL/ProductenEnDiensten/DagelijksBeheer/CashEnKleineUitgaven/Card/Prepaids/Prepaid-MasterCard/index.aspx","TBOp222","https://www.belfius.be/redirect?key=CardSimulator_E30_CB_NL"]
["CB222O","CardSimulator_","E30","_","CB","_","FR","CardSimulator_E30_CB_FR","/publicsocial/FR/ProduitsServices/GestionDeTresorerie/CashEtPetitesDepenses/Card/Prepaids/Prepaid-MasterCard/index.aspx","TBOp222","https://www.belfius.be/redirect?key=CardSimulator_E30_CB_FR"]
["CB222A","CardSimulator_","G30","_","PSB","_","NL","CardSimulator_G30_PSB_NL","/publicsocial/NL/ProductenEnDiensten/DagelijksBeheer/CashEnKleineUitgaven/PayButton/index.aspx","TBAl222","https://www.belfius.be/redirect?key=CardSimulator_G30_PSB_NL"]
["CB222A","CardSimulator_","G30","_","PSB","_","FR","CardSimulator_G30_PSB_FR","/publicsocial/FR/ProduitsServices/ITLine/OutilsTransactionnels/PayButton/index.aspx","TBAl222","https://www.belfius.be/redirect?key=CardSimulator_G30_PSB_FR"]
["CB222A","CardSimulator_","G30","_","CB","_","NL","CardSimulator_G30_CB_NL","/corporate/NL/OnzeProductenEnDiensten/ITLine/Transacties/BelfiusPayButton/Details/index.aspx","TBAl222","https://www.belfius.be/redirect?key=CardSimulator_G30_CB_NL"]
["CB222A","CardSimulator_","G30","_","CB","_","FR","CardSimulator_G30_CB_FR","/corporate/FR/ProduitsServices/ITLine/OutilsTransactionnels/BelfiusPayButton/Details/index.aspx","TBAl222","https://www.belfius.be/redirect?key=CardSimulator_G30_CB_FR"]
["CB223O","CardSimulator_","E31","_","PSB","_","NL","CardSimulator_E31_PSB_NL","/publicsocial/NL/ProductenEnDiensten/DagelijksBeheer/CashEnKleineUitgaven/Card/Credit/Visa-Corporate/index.aspx","TBOp223","https://www.belfius.be/redirect?key=CardSimulator_E31_PSB_NL"]
["CB223O","CardSimulator_","E31","_","PSB","_","FR","CardSimulator_E31_PSB_FR","/publicsocial/FR/ProduitsServices/GestionDeTresorerie/CashEtPetitesDepenses/Card/Credit/Visa-Corporate/index.aspx","TBOp223","https://www.belfius.be/redirect?key=CardSimulator_E31_PSB_FR"]
["CB223O","CardSimulator_","E31","_","CB","_","NL","CardSimulator_E31_CB_NL","/corporate/NL/OnzeProductenEnDiensten/ThesauriebeheerEnTransacties/BetalenEnBetaaldWorden/Betalen/Bankkaarten/Credit/Visa-Corporate/index.aspx","TBOp223","https://www.belfius.be/redirect?key=CardSimulator_E31_CB_NL"]
["CB223O","CardSimulator_","E31","_","CB","_","FR","CardSimulator_E31_CB_FR","/corporate/FR/ProduitsServices/GestionTresorerieTransactions/PayerEtrePaye/Payer/CartesBancaires/Credit/Visa-Corporate/index.aspx","TBOp223","https://www.belfius.be/redirect?key=CardSimulator_E31_CB_FR"]
["CB223A","CardSimulator_","G31","_","PSB","_","NL","CardSimulator_G31_PSB_NL","/publicsocial/NL/ProductenEnDiensten/DagelijksBeheer/CashEnKleineUitgaven/PayButton/index.aspx","TBAl223","https://www.belfius.be/redirect?key=CardSimulator_G31_PSB_NL"]
["CB223A","CardSimulator_","G31","_","PSB","_","FR","CardSimulator_G31_PSB_FR","/publicsocial/FR/ProduitsServices/ITLine/OutilsTransactionnels/PayButton/index.aspx","TBAl223","https://www.belfius.be/redirect?key=CardSimulator_G31_PSB_FR"]
["CB223A","CardSimulator_","G31","_","CB","_","NL","CardSimulator_G31_CB_NL","/corporate/NL/OnzeProductenEnDiensten/ITLine/Transacties/BelfiusPayButton/Details/index.aspx","TBAl223","https://www.belfius.be/redirect?key=CardSimulator_G31_CB_NL"]
["CB223A","CardSimulator_","G31","_","CB","_","FR","CardSimulator_G31_CB_FR","/corporate/FR/ProduitsServices/ITLine/OutilsTransactionnels/BelfiusPayButton/Details/index.aspx","TBAl223","https://www.belfius.be/redirect?key=CardSimulator_G31_CB_FR"]
["CB23O","CardSimulator_","C32","_","PSB","_","NL","CardSimulator_C32_PSB_NL","/publicsocial/NL/ProductenEnDiensten/DagelijksBeheer/CashEnKleineUitgaven/PayButton/index.aspx","TBOp23","https://www.belfius.be/redirect?key=CardSimulator_C32_PSB_NL"]
["CB23O","CardSimulator_","C32","_","PSB","_","FR","CardSimulator_C32_PSB_FR","/publicsocial/FR/ProduitsServices/ITLine/OutilsTransactionnels/PayButton/index.aspx","TBOp23","https://www.belfius.be/redirect?key=CardSimulator_C32_PSB_FR"]
["CB23O","CardSimulator_","C32","_","CB","_","NL","CardSimulator_C32_CB_NL","/corporate/NL/OnzeProductenEnDiensten/ITLine/Transacties/BelfiusPayButton/Details/index.aspx","TBOp23","https://www.belfius.be/redirect?key=CardSimulator_C32_CB_NL"]
["CB23O","CardSimulator_","C32","_","CB","_","FR","CardSimulator_C32_CB_FR","/corporate/FR/ProduitsServices/ITLine/OutilsTransactionnels/BelfiusPayButton/Details/index.aspx","TBOp23","https://www.belfius.be/redirect?key=CardSimulator_C32_CB_FR"]
["CB23A","CardSimulator_","E32","_","PSB","_","NL","CardSimulator_E32_PSB_NL","/common/NL/multimedia/MMDownloadableFile/Smallsites/CardSimulator/GestionPerformRecettesCartes.pdf","TBAl23","https://www.belfius.be/redirect?key=CardSimulator_E32_PSB_NL"]
["CB23A","CardSimulator_","E32","_","PSB","_","FR","CardSimulator_E32_PSB_FR","/common/fr/multimedia/MMDownloadableFile/Smallsites/CardSimulator/GestionPerformRecettesCartes.pdf","TBAl23","https://www.belfius.be/redirect?key=CardSimulator_E32_PSB_FR"]
["CB23A","CardSimulator_","E32","_","CB","_","NL","CardSimulator_E32_CB_NL","/common/NL/multimedia/MMDownloadableFile/Smallsites/CardSimulator/GestionPerformRecettesCartes.pdf","TBAl23","https://www.belfius.be/redirect?key=CardSimulator_E32_CB_NL"]
["CB23A","CardSimulator_","E32","_","CB","_","FR","CardSimulator_E32_CB_FR","/common/fr/multimedia/MMDownloadableFile/Smallsites/CardSimulator/GestionPerformRecettesCartes.pdf","TBAl23","https://www.belfius.be/redirect?key=CardSimulator_E32_CB_FR"]
["CB311O","CardSimulator_","C37","_","PSB","_","NL","CardSimulator_C37_PSB_NL","/publicsocial/NL/ProductenEnDiensten/DagelijksBeheer/CashEnKleineUitgaven/Card/Credit/Visa-Corporate/index.aspx","TBOp311","https://www.belfius.be/redirect?key=CardSimulator_C37_PSB_NL"]
["CB311O","CardSimulator_","C37","_","PSB","_","FR","CardSimulator_C37_PSB_FR","/publicsocial/FR/ProduitsServices/GestionDeTresorerie/CashEtPetitesDepenses/Card/Credit/Visa-Corporate/index.aspx","TBOp311","https://www.belfius.be/redirect?key=CardSimulator_C37_PSB_FR"]
["CB311O","CardSimulator_","C37","_","CB","_","NL","CardSimulator_C37_CB_NL","/corporate/NL/OnzeProductenEnDiensten/ThesauriebeheerEnTransacties/BetalenEnBetaaldWorden/Betalen/Bankkaarten/Credit/Visa-Corporate/index.aspx","TBOp311","https://www.belfius.be/redirect?key=CardSimulator_C37_CB_NL"]
["CB311O","CardSimulator_","C37","_","CB","_","FR","CardSimulator_C37_CB_FR","/corporate/FR/ProduitsServices/GestionTresorerieTransactions/PayerEtrePaye/Payer/CartesBancaires/Credit/Visa-Corporate/index.aspx","TBOp311","https://www.belfius.be/redirect?key=CardSimulator_C37_CB_FR"]
["CB311A","CardSimulator_","E37","_","PSB","_","NL","CardSimulator_E37_PSB_NL","/publicsocial/NL/ProductenEnDiensten/DagelijksBeheer/XpenditureByBelfius/index.aspx","TBAl311","https://www.belfius.be/redirect?key=CardSimulator_E37_PSB_NL"]
["CB311A","CardSimulator_","E37","_","PSB","_","FR","CardSimulator_E37_PSB_FR","/publicsocial/FR/ProduitsServices/GestionDeTresorerie/XpenditureByBelfius/index.aspx","TBAl311","https://www.belfius.be/redirect?key=CardSimulator_E37_PSB_FR"]
["CB311A","CardSimulator_","E37","_","CB","_","NL","CardSimulator_E37_CB_NL","/corporate/NL/OnzeProductenEnDiensten/ThesauriebeheerEnTransacties/BetalenEnBetaaldWorden/Betalen/XpenditurebyBelfius/index.aspx","TBAl311","https://www.belfius.be/redirect?key=CardSimulator_E37_CB_NL"]
["CB311A","CardSimulator_","E37","_","CB","_","FR","CardSimulator_E37_CB_FR","/corporate/FR/ProduitsServices/GestionTresorerieTransactions/PayerEtrePaye/Payer/XpenditurebyBelfius/index.aspx","TBAl311","https://www.belfius.be/redirect?key=CardSimulator_E37_CB_FR"]
["CB312O","CardSimulator_","C38","_","PSB","_","NL","CardSimulator_C38_PSB_NL","/publicsocial/NL/ProductenEnDiensten/DagelijksBeheer/CashEnKleineUitgaven/Card/Prepaids/Prepaid-MasterCard/index.aspx","TBOp312","https://www.belfius.be/redirect?key=CardSimulator_C38_PSB_NL"]
["CB312O","CardSimulator_","C38","_","PSB","_","FR","CardSimulator_C38_PSB_FR","/publicsocial/FR/ProduitsServices/GestionDeTresorerie/CashEtPetitesDepenses/Card/Prepaids/Prepaid-MasterCard/index.aspx","TBOp312","https://www.belfius.be/redirect?key=CardSimulator_C38_PSB_FR"]
["CB312O","CardSimulator_","C38","_","CB","_","NL","CardSimulator_C38_CB_NL","/corporate/NL/OnzeProductenEnDiensten/ThesauriebeheerEnTransacties/BetalenEnBetaaldWorden/Betalen/Bankkaarten/Prepaid/Prepaid-MasterCard/index.aspx","TBOp312","https://www.belfius.be/redirect?key=CardSimulator_C38_CB_NL"]
["CB312O","CardSimulator_","C38","_","CB","_","FR","CardSimulator_C38_CB_FR","/corporate/FR/ProduitsServices/GestionTresorerieTransactions/PayerEtrePaye/Payer/CartesBancaires/Prepaid/Prepaid-MasterCard/index.aspx","TBOp312","https://www.belfius.be/redirect?key=CardSimulator_C38_CB_FR"]
["CB312A","CardSimulator_","E38","_","PSB","_","NL","CardSimulator_E38_PSB_NL","/publicsocial/NL/ProductenEnDiensten/DagelijksBeheer/XpenditureByBelfius/index.aspx","TBAl312","https://www.belfius.be/redirect?key=CardSimulator_E38_PSB_NL"]
["CB312A","CardSimulator_","E38","_","PSB","_","FR","CardSimulator_E38_PSB_FR","/publicsocial/FR/ProduitsServices/GestionDeTresorerie/XpenditureByBelfius/index.aspx","TBAl312","https://www.belfius.be/redirect?key=CardSimulator_E38_PSB_FR"]
["CB312A","CardSimulator_","E38","_","CB","_","NL","CardSimulator_E38_CB_NL","/corporate/NL/OnzeProductenEnDiensten/ThesauriebeheerEnTransacties/BetalenEnBetaaldWorden/Betalen/XpenditurebyBelfius/index.aspx","TBAl312","https://www.belfius.be/redirect?key=CardSimulator_E38_CB_NL"]
["CB312A","CardSimulator_","E38","_","CB","_","FR","CardSimulator_E38_CB_FR","/corporate/FR/ProduitsServices/GestionTresorerieTransactions/PayerEtrePaye/Payer/XpenditurebyBelfius/index.aspx","TBAl312","https://www.belfius.be/redirect?key=CardSimulator_E38_CB_FR"]
["CB321O","CardSimulator_","C42","_","PSB","_","NL","CardSimulator_C42_PSB_NL","/publicsocial/NL/ProductenEnDiensten/DagelijksBeheer/CashEnKleineUitgaven/Card/Credit/Visa-Corporate/index.aspx","TBOp321","https://www.belfius.be/redirect?key=CardSimulator_C42_PSB_NL"]
["CB321O","CardSimulator_","C42","_","PSB","_","FR","CardSimulator_C42_PSB_FR","/publicsocial/FR/ProduitsServices/GestionDeTresorerie/CashEtPetitesDepenses/Card/Credit/Visa-Corporate/index.aspx","TBOp321","https://www.belfius.be/redirect?key=CardSimulator_C42_PSB_FR"]
["CB321O","CardSimulator_","C42","_","CB","_","NL","CardSimulator_C42_CB_NL","/corporate/NL/OnzeProductenEnDiensten/ThesauriebeheerEnTransacties/BetalenEnBetaaldWorden/Betalen/Bankkaarten/Credit/Visa-Corporate/index.aspx","TBOp321","https://www.belfius.be/redirect?key=CardSimulator_C42_CB_NL"]
["CB321O","CardSimulator_","C42","_","CB","_","FR","CardSimulator_C42_CB_FR","/corporate/FR/ProduitsServices/GestionTresorerieTransactions/PayerEtrePaye/Payer/CartesBancaires/Credit/Visa-Corporate/index.aspx","TBOp321","https://www.belfius.be/redirect?key=CardSimulator_C42_CB_FR"]
["CB321A","CardSimulator_","E42","_","PSB","_","NL","CardSimulator_E42_PSB_NL","/publicsocial/NL/ProductenEnDiensten/DagelijksBeheer/XpenditureByBelfius/index.aspx","TBAl321","https://www.belfius.be/redirect?key=CardSimulator_E42_PSB_NL"]
["CB321A","CardSimulator_","E42","_","PSB","_","FR","CardSimulator_E42_PSB_FR","/publicsocial/FR/ProduitsServices/GestionDeTresorerie/XpenditureByBelfius/index.aspx","TBAl321","https://www.belfius.be/redirect?key=CardSimulator_E42_PSB_FR"]
["CB321A","CardSimulator_","E42","_","CB","_","NL","CardSimulator_E42_CB_NL","/corporate/NL/OnzeProductenEnDiensten/ThesauriebeheerEnTransacties/BetalenEnBetaaldWorden/Betalen/XpenditurebyBelfius/index.aspx","TBAl321","https://www.belfius.be/redirect?key=CardSimulator_E42_CB_NL"]
["CB321A","CardSimulator_","E42","_","CB","_","FR","CardSimulator_E42_CB_FR","/corporate/FR/ProduitsServices/GestionTresorerieTransactions/PayerEtrePaye/Payer/XpenditurebyBelfius/index.aspx","TBAl321","https://www.belfius.be/redirect?key=CardSimulator_E42_CB_FR"]
["CB322O","CardSimulator_","C43","_","PSB","_","NL","CardSimulator_C43_PSB_NL","/publicsocial/NL/ProductenEnDiensten/DagelijksBeheer/CashEnKleineUitgaven/Card/Prepaids/Prepaid-MasterCard/index.aspx","TBOp322","https://www.belfius.be/redirect?key=CardSimulator_C43_PSB_NL"]
["CB322O","CardSimulator_","C43","_","PSB","_","FR","CardSimulator_C43_PSB_FR","/publicsocial/FR/ProduitsServices/GestionDeTresorerie/CashEtPetitesDepenses/Card/Prepaids/Prepaid-MasterCard/index.aspx","TBOp322","https://www.belfius.be/redirect?key=CardSimulator_C43_PSB_FR"]
["CB322O","CardSimulator_","C43","_","CB","_","NL","CardSimulator_C43_CB_NL","/corporate/NL/OnzeProductenEnDiensten/ThesauriebeheerEnTransacties/BetalenEnBetaaldWorden/Betalen/Bankkaarten/Prepaid/Prepaid-MasterCard/index.aspx","TBOp322","https://www.belfius.be/redirect?key=CardSimulator_C43_CB_NL"]
["CB322O","CardSimulator_","C43","_","CB","_","FR","CardSimulator_C43_CB_FR","/corporate/FR/ProduitsServices/GestionTresorerieTransactions/PayerEtrePaye/Payer/CartesBancaires/Prepaid/Prepaid-MasterCard/index.aspx","TBOp322","https://www.belfius.be/redirect?key=CardSimulator_C43_CB_FR"]
["CB322A","CardSimulator_","E43","_","PSB","_","NL","CardSimulator_E43_PSB_NL","/publicsocial/NL/ProductenEnDiensten/DagelijksBeheer/XpenditureByBelfius/index.aspx","TBAl322","https://www.belfius.be/redirect?key=CardSimulator_E43_PSB_NL"]
["CB322A","CardSimulator_","E43","_","PSB","_","FR","CardSimulator_E43_PSB_FR","/publicsocial/FR/ProduitsServices/GestionDeTresorerie/XpenditureByBelfius/index.aspx","TBAl322","https://www.belfius.be/redirect?key=CardSimulator_E43_PSB_FR"]
["CB322A","CardSimulator_","E43","_","CB","_","NL","CardSimulator_E43_CB_NL","/corporate/NL/OnzeProductenEnDiensten/ThesauriebeheerEnTransacties/BetalenEnBetaaldWorden/Betalen/XpenditurebyBelfius/index.aspx","TBAl322","https://www.belfius.be/redirect?key=CardSimulator_E43_CB_NL"]
["CB322A","CardSimulator_","E43","_","CB","_","FR","CardSimulator_E43_CB_FR","/corporate/FR/ProduitsServices/GestionTresorerieTransactions/PayerEtrePaye/Payer/XpenditurebyBelfius/index.aspx","TBAl322","https://www.belfius.be/redirect?key=CardSimulator_E43_CB_FR"]